[Event "Romanian-ch Youth Open U18 2024"]
[Site "Eforie Nord"]
[Date "2024.04.12"]
[Round "1.1"]
[White "Nedelcu, Teodor-Cosmin"]
[Black "Dinca, Radu"]
[Result "1-0"]
[ECO "D60"]
[WhiteElo "2306"]
[BlackElo "1929"]
[Annotator "RC"]
[PlyCount "165"]
[EventDate "2024.04.10"]
[EventType "swiss"]
[EventCountry "ROU"]
[SourceTitle "playchess.com"]
[Source "ChessBase"]
[SourceQuality "1"]
[TimeControl "5400+30"]

1. d4 {[%emt 0:00:30]} Nf6 {[%emt 0:00:22]} 2. c4 {[%emt 0:00:00]} e6 {[%emt 0:00:26]} 3. Nc3 {[%emt 0:00:00]} d5 {[%emt 0:00:54]} 4. Bg5 {[%emt 0:00:00]} Be7 {[%emt 0:00:55]} 5. e3 {[%emt 0:00:03]} O-O {[%emt 0:00:58]} 6. Nf3 {[%emt 0:00:12]} Nbd7 {[%emt 0:03:29]} 7. Bd3 {[%emt 0:00:11]} h6 {[%emt 0:00:20]} 8. Bh4 {[%emt 0:00:09]} b6 {[%emt 0:01:38]} 9. cxd5 {[%emt 0:01:04]} Nxd5 {[%emt 0:02:03]} 10. Bxe7 {[%emt 0:01:35]} Qxe7 {[%emt 0:02:05]} 11. Rc1 {[%emt 0:00:23]} Nxc3 {[%emt 0:03:45]} 12. Rxc3 {[%emt 0:00:36]} c5 {[%emt 0:05:59]} 13. Bb5 {[%emt 0:03:10]} Rd8 {[%emt 0:15:39]} 14. Bc6 {[%emt 0:04:57]} Rb8 {[%emt 0:00:42]} 15. Qe2 {[%emt 0:00:19]} Qd6 {[%emt 0:08:01]} 16. Bxd7 {[%emt 0:00:15]} Bxd7 {[%emt 0:00:45]} 17. O-O {[%emt 0:00:09]} cxd4 {[%emt 0:06:46]} 18. Nxd4 {[%emt 0:02:28]} e5 {[%emt 0:05:08]} 19. Nb3 {[%emt 0:00:26]} Be6 {[%emt 0:06:24]} 20. h3 {[%emt 0:08:28]} a5 {[%emt 0:06:10]} 21. Qb5 {[%emt 0:02:29]} Bd7 {[%emt 0:06:01]} 22. Qa6 {[%emt 0:08:11]} Bc8 {[%emt 0:14:59]} 23. Qc4 {[%emt 0:07:11]} Be6 {[%emt 0:00:55]} 24. Qe4 {[%emt 0:01:05]} Bd5 {[%emt 0:01:33]} 25. Qc2 {[%emt 0:00:16]} a4 {[%emt 0:03:33]} 26. Nc1 {[%emt 0:00:24]} b5 {[%emt 0:00:04]} 27. Rd1 {[%emt 0:01:28]} Qe7 {[%emt 0:01:56]} 28. e4 {[%emt 0:03:35]} Be6 {[%emt 0:00:56]} 29. a3 {[%emt 0:04:56]} Rxd1+ {[%emt 0:00:52]} 30. Qxd1 {[%emt 0:00:02]} Bc4 {[%emt 0:00:41]} 31. Rc2 {[%emt 0:01:02]} Rd8 {[%emt 0:01:05]} 32. Rd2 {[%emt 0:00:05]} Rxd2 {[%emt 0:00:07]} 33. Qxd2 {[%emt 0:00:01]} Qc5 {[%emt 0:01:00]} 34. Ne2 {[%emt 0:02:32]} Bxe2 {[%emt 0:00:29]} 35. Qxe2 {[%emt 0:00:01]} Kf8 {[%emt 0:00:34]} 36. Kh2 {[%emt 0:00:41]} g6 {[%emt 0:00:30]} 37. Kg3 {[%emt 0:00:44]} h5 {[%emt 0:00:39]} 38. Kf3 {[%emt 0:01:30]} Ke7 {[%emt 0:00:27]} 39. Qd3 {[%emt 0:00:38]} Kf6 {[%emt 0:00:37]} 40. Qd8+ {[%emt 0:00:23]} Ke6 {[%emt 0:00:24]} 41. g4 {[%emt 0:01:05]} hxg4+ {[%emt 0:00:34]} 42. hxg4 {[%emt 0:00:02]} Qc4 {[%emt 0:00:29]} 43. g5 {[%emt 0:01:34]} Qb3+ {[%emt 0:00:18]} 44. Kg2 {[%emt 0:00:10]} Qxb2 {[%emt 0:00:42]} 45. Qf6+ {[%emt 0:00:57]} Kd7 {[%emt 0:00:03]} 46. Qxf7+ {[%emt 0:00:06]} Kc6 {[%emt 0:01:00]} 47. Qxg6+ {[%emt 0:00:26]} Kc5 {[%emt 0:00:10]} 48. Qf7 {[%emt 0:01:27]} Qe2 {[%emt 0:00:46]} 49. Qd5+ {[%emt 0:00:30]} Kb6 {[%emt 0:00:10]} 50. Kg3 {[%emt 0:00:12]} Qe1 {[%emt 0:00:29]} 51. Qxe5 {[%emt 0:01:39]} Qg1+ {[%emt 0:00:20]} 52. Kf3 {[%emt 0:00:44]} Qd1+ {[%emt 0:00:13]} 53. Kf4 {[%emt 0:01:58]} Qc1+ {[%emt 0:00:33]} 54. Kg4 {[%emt 0:00:18]} Qc8+ {[%emt 0:01:08]} 55. Qf5 {[%emt 0:01:52]} Qxf5+ {[%emt 0:00:22]} 56. Kxf5 {[%emt 0:00:22]} b4 {[%emt 0:00:06]} 57. axb4 {[%emt 0:00:25]} a3 {[%emt 0:00:01]} 58. g6 {[%emt 0:00:06]} a2 {[%emt 0:00:04]} 59. g7 {[%emt 0:00:03]} a1=Q {[%emt 0:00:06]} 60. g8=Q {[%emt 0:00:05]} Qd1 {[%emt 0:01:00]} 61. Qe6+ {[%emt 0:00:24]} Kc7 {[%emt 0:00:35]} 62. Qe5+ {[%emt 0:00:19]} Kc8 {[%emt 0:00:27]} 63. Qe8+ {[%emt 0:01:45]} Kc7 {[%emt 0:00:20]} 64. f4 {[%emt 0:00:11]} Qd3 {[%emt 0:00:21]} 65. Qe5+ {[%emt 0:00:35]} Kc8 {[%emt 0:00:20]} 66. Qc5+ {[%emt 0:00:19]} Kb8 {[%emt 0:00:23]} 67. Ke6 {[%emt 0:01:21]} Qb3+ {[%emt 0:00:32]} 68. Qd5 {[%emt 0:01:19]} Qg3 {[%emt 0:00:37]} 69. Qd8+ {[%emt 0:00:14]} Kb7 {[%emt 0:00:14]} 70. f5 {[%emt 0:00:26]} Qh3 {[%emt 0:00:26]} 71. Qd5+ {[%emt 0:00:18]} Kc7 {[%emt 0:00:59]} 72. Qc5+ {[%emt 0:01:22]} Kd8 {[%emt 0:00:48]} 73. Qf8+ {[%emt 0:00:15]} Kc7 {[%emt 0:00:03]} 74. e5 {[%emt 0:00:08]} Qg4 {[%emt 0:01:09]} 75. Qe7+ {[%emt 0:03:18]} Kc8 {[%emt 0:00:23]} 76. Qd7+ {[%emt 0:00:04]} Kb8 {[%emt 0:00:02]} 77. b5 {[%emt 0:00:23]} Qg8+ {[%emt 0:00:48]} 78. Qf7 {[%emt 0:00:07]} Qc8+ {[%emt 0:00:10]} 79. Kf6 {[%emt 0:00:04]} Qh8+ {[%emt 0:00:27]} 80. Qg7 {[%emt 0:00:17]} Qd8+ {[%emt 0:00:15]} 81. Kg6 {[%emt 0:00:16]} Qe8+ {[%emt 0:00:24]} 82. Qf7 {[%emt 0:00:30]} Qxe5 {[%emt 0:00:12]} 83. Qg8+ {[%emt 0:00:05]} 1-0

[Event "Romanian-ch Youth Open U18 2024"]
[Site "Eforie Nord"]
[Date "2024.04.12"]
[Round "1.2"]
[White "Dima, Ioan-Radu"]
[Black "Filip, Andrei"]
[Result "0-1"]
[ECO "E15"]
[WhiteElo "1913"]
[BlackElo "2299"]
[Annotator "RC"]
[PlyCount "86"]
[EventDate "2024.04.10"]
[EventType "swiss"]
[EventCountry "ROU"]
[SourceTitle "playchess.com"]
[Source "ChessBase"]
[SourceQuality "1"]
[TimeControl "5400+30"]

1. d4 {[%emt 0:00:05]} Nf6 {[%emt 0:00:13]} 2. c4 {[%emt 0:00:12]} e6 {[%emt 0:00:06]} 3. Nf3 {[%emt 0:00:39]} b6 {[%emt 0:00:05]} 4. g3 {[%emt 0:00:06]} Ba6 {[%emt 0:00:05]} 5. b3 {[%emt 0:00:08]} Bb4+ {[%emt 0:00:10]} 6. Bd2 {[%emt 0:00:13]} Be7 {[%emt 0:00:06]} 7. Bg2 {[%emt 0:00:25]} d5 {[%emt 0:00:11]} 8. O-O {[%emt 0:02:15]} O-O {[%emt 0:02:18]} 9. Bf4 {[%emt 0:08:43]} dxc4 {[%emt 0:11:12]} 10. Nc3 {[%emt 0:27:57]} cxb3 {[%emt 0:11:58]} 11. axb3 {[%emt 0:00:36]} Bb7 {[%emt 0:09:06]} 12. Qc2 {[%emt 0:11:34]} Nc6 {[%emt 0:03:26]} 13. Nb5 {[%emt 0:05:09]} Nd5 {[%emt 0:08:52]} 14. Ne5 {[%emt 0:04:02]} Ncb4 {[%emt 0:05:18]} 15. Qc4 {[%emt 0:04:31]} a6 {[%emt 0:07:09]} 16. Na3 {[%emt 0:11:42]} b5 {[%emt 0:02:50]} 17. Qc1 {[%emt 0:00:18]} Nxf4 {[%emt 0:01:02]} 18. Qxf4 {[%emt 0:00:02]} Bxg2 {[%emt 0:02:08]} 19. Kxg2 {[%emt 0:00:04]} Qd5+ {[%emt 0:00:17]} 20. Nf3 {[%emt 0:00:49]} Qxb3 {[%emt 0:05:02]} 21. Rfb1 {[%emt 0:01:43]} Qd5 {[%emt 0:02:01]} 22. Qxc7 {[%emt 0:00:31]} Nc6 {[%emt 0:02:56]} 23. Qf4 {[%emt 0:03:04]} g5 {[%emt 0:04:49]} 24. e4 {[%emt 0:02:29]} gxf4 {[%emt 0:00:55]} 25. exd5 {[%emt 0:00:03]} exd5 {[%emt 0:01:46]} 26. gxf4 {[%emt 0:00:08]} Bd6 {[%emt 0:01:51]} 27. f5 {[%emt 0:00:22]} Rfe8 {[%emt 0:03:15]} 28. Nc2 {[%emt 0:00:25]} Bf4 {[%emt 0:00:50]} 29. Nce1 {[%emt 0:01:15]} f6 {[%emt 0:03:41]} 30. Nd3 {[%emt 0:01:08]} Bd6 {[%emt 0:00:41]} 31. Rc1 {[%emt 0:00:34]} Ne7 {[%emt 0:01:07]} 32. Nh4 {[%emt 0:00:24]} a5 {[%emt 0:01:04]} 33. Kf3 {[%emt 0:00:28]} a4 {[%emt 0:00:59]} 34. Rab1 {[%emt 0:03:14]} Reb8 {[%emt 0:01:01]} 35. Nc5 {[%emt 0:00:37]} Bxc5 {[%emt 0:01:44]} 36. Rxc5 {[%emt 0:00:02]} a3 {[%emt 0:00:29]} 37. Rc7 {[%emt 0:01:09]} a2 {[%emt 0:00:56]} 38. Ra1 {[%emt 0:00:01]} Kf8 {[%emt 0:00:47]} 39. Ng2 {[%emt 0:01:01]} Nxf5 {[%emt 0:01:37]} 40. Nf4 {[%emt 0:00:30]} Nxd4+ {[%emt 0:00:30]} 41. Ke3 {[%emt 0:01:14]} Nf5+ {[%emt 0:00:35]} 42. Kd2 {[%emt 0:00:26]} Ne7 {[%emt 0:00:34]} 43. Nh5 {[%emt 0:01:42]} b4 {[%emt 0:02:08]} 0-1

[Event "Romanian-ch Youth Open U18 2024"]
[Site "Eforie Nord"]
[Date "2024.04.13"]
[Round "2.1"]
[White "Veress, Armand"]
[Black "Nedelcu, Teodor-Cosmin"]
[Result "0-1"]
[ECO "C00"]
[WhiteElo "2098"]
[BlackElo "2306"]
[Annotator "RC"]
[PlyCount "60"]
[EventDate "2024.04.10"]
[EventType "swiss"]
[EventCountry "ROU"]
[SourceTitle "playchess.com"]
[Source "ChessBase"]
[SourceQuality "1"]
[TimeControl "5400+30"]

1. e4 {[%emt 0:00:12]} c5 {[%emt 0:00:12]} 2. Nf3 {[%emt 0:00:10]} e6 {[%emt 0:00:07]} 3. g3 {[%emt 0:00:07]} Nc6 {[%emt 0:00:25]} 4. Bg2 {[%emt 0:00:16]} Nf6 {[%emt 0:00:33]} 5. Qe2 {[%emt 0:00:22]} Be7 {[%emt 0:01:13]} 6. e5 {[%emt 0:01:28]} Nd5 {[%emt 0:02:27]} 7. O-O {[%emt 0:00:42]} O-O {[%emt 0:00:06]} 8. c4 {[%emt 0:02:05]} Nc7 {[%emt 0:00:17]} 9. d3 {[%emt 0:04:22]} b6 {[%emt 0:02:16]} 10. Nc3 {[%emt 0:01:10]} Bb7 {[%emt 0:00:14]} 11. Ne4 {[%emt 0:02:00]} f6 {[%emt 0:10:22]} 12. exf6 {[%emt 0:00:48]} Bxf6 {[%emt 0:01:37]} 13. Bf4 {[%emt 0:08:36]} e5 {[%emt 0:26:01]} 14. Nxf6+ {[%emt 0:04:53]} Qxf6 {[%emt 0:00:05]} 15. Nxe5 {[%emt 0:19:02]} Nd4 {[%emt 0:05:42]} 16. Qg4 {[%emt 0:01:54]} Bxg2 {[%emt 0:00:09]} 17. Kxg2 {[%emt 0:00:08]} Nce6 {[%emt 0:01:09]} 18. Nxd7 {[%emt 0:06:16]} Nxf4+ {[%emt 0:01:49]} 19. gxf4 {[%emt 0:00:15]} Qc6+ {[%emt 0:00:17]} 20. f3 {[%emt 0:00:57]} h5 {[%emt 0:00:17]} 21. Qh3 {[%emt 0:02:39]} Ne6 {[%emt 0:00:36]} 22. Ne5 {[%emt 0:03:21]} Nxf4+ {[%emt 0:00:11]} 23. Kh1 {[%emt 0:03:45]} Qd6 {[%emt 0:00:13]} 24. Qd7 {[%emt 0:01:20]} Qxe5 {[%emt 0:00:07]} 25. Rae1 {[%emt 0:00:12]} Qxb2 {[%emt 0:01:17]} 26. Rg1 {[%emt 0:00:14]} Rf7 {[%emt 0:00:53]} 27. Re8+ {[%emt 0:03:50]} Rxe8 {[%emt 0:00:06]} 28. Qxe8+ {[%emt 0:00:05]} Rf8 {[%emt 0:00:05]} 29. Qd7 {[%emt 0:00:47]} a5 {[%emt 0:00:40]} 30. a4 {[%emt 0:01:11]} Qf6 {[%emt 0:00:18]} 0-1

[Event "Romanian-ch Youth Open U18 2024"]
[Site "Eforie Nord"]
[Date "2024.04.13"]
[Round "2.2"]
[White "Filip, Andrei"]
[Black "Nastore, Pavel-Alexandru"]
[Result "1/2-1/2"]
[ECO "B92"]
[WhiteElo "2299"]
[BlackElo "2189"]
[Annotator "RC"]
[PlyCount "43"]
[EventDate "2024.04.10"]
[EventType "swiss"]
[EventCountry "ROU"]
[SourceTitle "playchess.com"]
[Source "ChessBase"]
[SourceQuality "1"]
[TimeControl "5400+30"]

1. e4 {[%emt 0:00:03]} c5 {[%emt 0:00:23]} 2. Nf3 {[%emt 0:00:09]} d6 {[%emt 0:00:04]} 3. d4 {[%emt 0:00:06]} cxd4 {[%emt 0:00:05]} 4. Nxd4 {[%emt 0:00:07]} Nf6 {[%emt 0:00:06]} 5. Nc3 {[%emt 0:00:07]} a6 {[%emt 0:00:03]} 6. Be2 {[%emt 0:00:11]} e5 {[%emt 0:00:23]} 7. Nb3 {[%emt 0:00:11]} Be7 {[%emt 0:12:45]} 8. Be3 {[%emt 0:00:14]} O-O {[%emt 0:02:47]} 9. O-O {[%emt 0:04:39]} Be6 {[%emt 0:03:00]} 10. Nd5 {[%emt 0:02:00]} Nbd7 {[%emt 0:08:19]} 11. Qd3 {[%emt 0:01:50]} Bxd5 {[%emt 0:06:23]} 12. exd5 {[%emt 0:00:07]} e4 {[%emt 0:12:19]} 13. Qd2 {[%emt 0:05:10]} Ne5 {[%emt 0:05:00]} 14. Qd4 {[%emt 0:15:30]} Qd7 {[%emt 0:13:20]} 15. Nd2 {[%emt 0:11:05]} Qf5 {[%emt 0:05:06]} 16. c4 {[%emt 0:05:40]} Rfe8 {[%emt 0:00:50]} 17. f3 {[%emt 0:11:13]} exf3 {[%emt 0:00:16]} 18. Nxf3 {[%emt 0:00:14]} Bd8 {[%emt 0:05:39]} 19. Kh1 {[%emt 0:21:35]} Nfd7 {[%emt 0:13:50]} 20. Nd2 {[%emt 0:07:01]} Qg6 {[%emt 0:00:24]} 21. Qf4 {[%emt 0:01:34]} Bb6 {[%emt 0:02:25]} 22. Bxb6 {[%emt 0:01:04]} 1/2-1/2

[Event "Romanian-ch Youth Open U18 2024"]
[Site "Eforie Nord"]
[Date "2024.04.13"]
[Round "3.1"]
[White "Nedelcu, Teodor-Cosmin"]
[Black "Sachilaru, Alexandru"]
[Result "0-1"]
[ECO "E70"]
[WhiteElo "2306"]
[BlackElo "2203"]
[Annotator "RC"]
[PlyCount "69"]
[EventDate "2024.04.10"]
[EventType "swiss"]
[EventCountry "ROU"]
[SourceTitle "playchess.com"]
[Source "ChessBase"]
[SourceQuality "1"]
[TimeControl "5400+30"]

1. d4 {[%emt 0:00:04]} Nf6 {[%emt 0:00:08]} 2. c4 {[%emt 0:00:15]} g6 {[%emt 0:00:11]} 3. Nc3 {[%emt 0:00:07]} Bg7 {[%emt 0:00:12]} 4. e4 {[%emt 0:00:06]} d6 {[%emt 0:00:19]} 5. Bd3 {[%emt 0:00:22]} O-O {[%emt 0:01:50]} 6. Nge2 {[%emt 0:00:17]} a6 {[%emt 0:05:50]} 7. O-O {[%emt 0:00:19]} c6 {[%emt 0:01:27]} 8. f4 {[%emt 0:03:58]} b5 {[%emt 0:08:26]} 9. e5 {[%emt 0:02:27]} Ne8 {[%emt 0:02:09]} 10. Be3 {[%emt 0:00:57]} Nc7 {[%emt 0:04:33]} 11. Qc2 {[%emt 0:01:51]} Nd7 {[%emt 0:06:31]} 12. c5 {[%emt 0:05:59]} Bb7 {[%emt 0:06:26]} 13. a3 {[%emt 0:04:03]} Nd5 {[%emt 0:02:19]} 14. Nxd5 {[%emt 0:00:20]} cxd5 {[%emt 0:00:09]} 15. b4 {[%emt 0:01:14]} dxe5 {[%emt 0:06:09]} 16. fxe5 {[%emt 0:01:07]} Bc6 {[%emt 0:02:54]} 17. h4 {[%emt 0:05:42]} e6 {[%emt 0:06:17]} 18. g3 {[%emt 0:00:23]} f6 {[%emt 0:01:44]} 19. exf6 {[%emt 0:00:08]} Nxf6 {[%emt 0:01:07]} 20. Bg5 {[%emt 0:02:52]} Qd7 {[%emt 0:03:54]} 21. Rae1 {[%emt 0:06:55]} Ne4 {[%emt 0:02:13]} 22. Bf4 {[%emt 0:02:53]} Rf7 {[%emt 0:08:25]} 23. Bxe4 {[%emt 0:12:14]} dxe4 {[%emt 0:00:05]} 24. Bd6 {[%emt 0:02:55]} Rf3 {[%emt 0:02:25]} 25. Kh2 {[%emt 0:07:51]} Qf7 {[%emt 0:03:32]} 26. Nf4 {[%emt 0:25:10]} Bxd4 {[%emt 0:03:12]} 27. Qe2 {[%emt 0:04:49]} e5 {[%emt 0:02:11]} 28. Nh3 {[%emt 0:00:46]} Bd5 {[%emt 0:04:58]} 29. Bxe5 {[%emt 0:03:58]} Bxe5 {[%emt 0:01:43]} 30. Rxf3 {[%emt 0:00:06]} exf3 {[%emt 0:01:04]} 31. Qxe5 {[%emt 0:00:01]} f2 {[%emt 0:00:59]} 32. Rf1 {[%emt 0:01:37]} Re8 {[%emt 0:00:52]} 33. Qc3 {[%emt 0:00:16]} Re1 {[%emt 0:01:44]} 34. Qd3 {[%emt 0:01:10]} Qf5 {[%emt 0:01:47]} 35. Nxf2 {[%emt 0:02:17]} 0-1

[Event "Romanian-ch Youth Open U18 2024"]
[Site "Eforie Nord"]
[Date "2024.04.13"]
[Round "3.2"]
[White "Creanga, Robert-Ionut"]
[Black "Filip, Andrei"]
[Result "1/2-1/2"]
[ECO "E48"]
[WhiteElo "2284"]
[BlackElo "2299"]
[Annotator "RC"]
[PlyCount "101"]
[EventDate "2024.04.10"]
[EventType "swiss"]
[EventCountry "ROU"]
[SourceTitle "playchess.com"]
[Source "ChessBase"]
[SourceQuality "1"]
[TimeControl "5400+30"]

1. d4 {[%emt 0:01:37]} Nf6 {[%emt 0:00:08]} 2. c4 {[%emt 0:00:45]} e6 {[%emt 0:00:10]} 3. Nc3 {[%emt 0:00:53]} Bb4 {[%emt 0:00:14]} 4. e3 {[%emt 0:00:37]} O-O {[%emt 0:01:22]} 5. Bd3 {[%emt 0:01:09]} Re8 {[%emt 0:02:50]} 6. Nge2 {[%emt 0:02:44]} d5 {[%emt 0:02:16]} 7. O-O {[%emt 0:06:12]} Bf8 {[%emt 0:09:51]} 8. Qc2 {[%emt 0:23:40]} Nbd7 {[%emt 0:15:55]} 9. e4 {[%emt 0:08:15]} dxe4 {[%emt 0:00:41]} 10. Nxe4 {[%emt 0:00:48]} Nxe4 {[%emt 0:03:20]} 11. Bxe4 {[%emt 0:00:23]} Nf6 {[%emt 0:00:15]} 12. Bf3 {[%emt 0:03:46]} c5 {[%emt 0:06:43]} 13. Rd1 {[%emt 0:03:09]} cxd4 {[%emt 0:05:36]} 14. Nxd4 {[%emt 0:00:52]} Qe7 {[%emt 0:07:44]} 15. Bg5 {[%emt 0:18:52]} a6 {[%emt 0:08:17]} 16. Rac1 {[%emt 0:04:56]} e5 {[%emt 0:02:21]} 17. Nf5 {[%emt 0:01:52]} Qe6 {[%emt 0:02:15]} 18. Ng3 {[%emt 0:03:53]} h6 {[%emt 0:03:15]} 19. Bxf6 {[%emt 0:01:40]} Qxf6 {[%emt 0:00:47]} 20. c5 {[%emt 0:00:37]} Rb8 {[%emt 0:04:09]} 21. Ne4 {[%emt 0:01:59]} Qe7 {[%emt 0:03:31]} 22. Nd6 {[%emt 0:01:30]} Rd8 {[%emt 0:00:07]} 23. Bd5 {[%emt 0:01:18]} Be6 {[%emt 0:00:17]} 24. Qe4 {[%emt 0:01:07]} Bxd5 {[%emt 0:01:28]} 25. Rxd5 {[%emt 0:00:33]} f6 {[%emt 0:04:06]} 26. Rcd1 {[%emt 0:02:48]} Qc7 {[%emt 0:04:17]} 27. b4 {[%emt 0:01:32]} Qc6 {[%emt 0:01:59]} 28. Qc4 {[%emt 0:04:15]} Kh7 {[%emt 0:00:15]} 29. Qc2+ {[%emt 0:00:42]} Kg8 {[%emt 0:03:48]} 30. a4 {[%emt 0:00:21]} Bxd6 {[%emt 0:01:13]} 31. Rxd6 {[%emt 0:00:12]} Rxd6 {[%emt 0:00:37]} 32. Rxd6 {[%emt 0:00:16]} Qe8 {[%emt 0:00:23]} 33. Qd1 {[%emt 0:00:36]} e4 {[%emt 0:00:58]} 34. Qb3+ {[%emt 0:02:05]} Kh8 {[%emt 0:01:08]} 35. Re6 {[%emt 0:00:49]} Qf7 {[%emt 0:00:31]} 36. Qd5 {[%emt 0:00:49]} Re8 {[%emt 0:00:45]} 37. Rxe8+ {[%emt 0:00:53]} Qxe8 {[%emt 0:00:01]} 38. Qxb7 {[%emt 0:00:29]} e3 {[%emt 0:00:06]} 39. Kf1 {[%emt 0:00:33]} exf2 {[%emt 0:01:30]} 40. Kxf2 {[%emt 0:00:12]} Qxa4 {[%emt 0:00:36]} 41. Qa8+ {[%emt 0:00:24]} Kh7 {[%emt 0:00:06]} 42. Qe4+ {[%emt 0:00:09]} Kh8 {[%emt 0:00:06]} 43. c6 {[%emt 0:00:32]} Qd1 {[%emt 0:01:50]} 44. h4 {[%emt 0:01:03]} Qd2+ {[%emt 0:00:38]} 45. Kg1 {[%emt 0:00:35]} Qc1+ {[%emt 0:01:44]} 46. Kh2 {[%emt 0:00:17]} f5 {[%emt 0:00:11]} 47. Qf3 {[%emt 0:00:48]} Qc4 {[%emt 0:01:05]} 48. g3 {[%emt 0:00:22]} Qc2+ {[%emt 0:00:27]} 49. Kh3 {[%emt 0:00:31]} Qc4 {[%emt 0:01:01]} 50. h5 {[%emt 0:00:34]} Kg8 {[%emt 0:00:48]} 51. Kh2 {[%emt 0:00:31]} 1/2-1/2

[Event "Romanian-ch Youth Open U18 2024"]
[Site "Eforie Nord"]
[Date "2024.04.14"]
[Round "4.1"]
[White "Sachilaru, Alexandru"]
[Black "Creanga, Robert-Ionut"]
[Result "1/2-1/2"]
[ECO "B13"]
[WhiteElo "2203"]
[BlackElo "2284"]
[Annotator "RC"]
[PlyCount "46"]
[EventDate "2024.04.10"]
[EventType "swiss"]
[EventCountry "ROU"]
[SourceTitle "playchess.com"]
[Source "ChessBase"]
[SourceQuality "1"]
[TimeControl "5400+30"]

1. e4 {[%emt 0:00:05]} c6 {[%emt 0:00:46]} 2. d4 {[%emt 0:00:12]} d5 {[%emt 0:00:37]} 3. exd5 {[%emt 0:00:24]} cxd5 {[%emt 0:00:30]} 4. Bd3 {[%emt 0:00:27]} Nc6 {[%emt 0:01:08]} 5. c3 {[%emt 0:00:18]} Nf6 {[%emt 0:01:09]} 6. Bf4 {[%emt 0:00:35]} Bg4 {[%emt 0:01:01]} 7. Qb3 {[%emt 0:00:33]} Qd7 {[%emt 0:00:39]} 8. Nd2 {[%emt 0:00:34]} e6 {[%emt 0:00:28]} 9. Ngf3 {[%emt 0:00:33]} Bd6 {[%emt 0:00:31]} 10. Bxd6 {[%emt 0:00:44]} Qxd6 {[%emt 0:00:08]} 11. O-O {[%emt 0:00:15]} O-O {[%emt 0:00:45]} 12. Rfe1 {[%emt 0:00:26]} Ne7 {[%emt 0:08:07]} 13. Ne5 {[%emt 0:00:59]} Bf5 {[%emt 0:00:12]} 14. Bf1 {[%emt 0:00:34]} Qc7 {[%emt 0:13:25]} 15. Rac1 {[%emt 0:04:35]} Rac8 {[%emt 0:24:00]} 16. Qd1 {[%emt 0:02:43]} h6 {[%emt 0:05:23]} 17. g4 {[%emt 0:12:39]} Bh7 {[%emt 0:01:03]} 18. h4 {[%emt 0:26:27]} Nd7 {[%emt 0:16:45]} 19. Nxd7 {[%emt 0:06:41]} Qxd7 {[%emt 0:00:07]} 20. Nf3 {[%emt 0:01:16]} Qd6 {[%emt 0:01:30]} 21. Qd2 {[%emt 0:03:07]} Be4 {[%emt 0:02:43]} 22. Nh2 {[%emt 0:04:53]} Bh7 {[%emt 0:07:18]} 23. Nf3 {[%emt 0:02:01]} Be4 {[%emt 0:03:41]} 1/2-1/2

[Event "Romanian-ch Youth Open U18 2024"]
[Site "Eforie Nord"]
[Date "2024.04.14"]
[Round "4.2"]
[White "Veress, Armand"]
[Black "Nastore, Pavel-Alexandru"]
[Result "0-1"]
[ECO "B52"]
[WhiteElo "2098"]
[BlackElo "2189"]
[Annotator "TA"]
[PlyCount "58"]
[EventDate "2024.04.10"]
[EventType "swiss"]
[EventCountry "ROU"]
[SourceTitle "playchess.com"]
[Source "ChessBase"]
[SourceQuality "1"]
[TimeControl "5400+30"]

{[%evp 14,58,17,15,23,11,21,23,22,18,18,14,27,0,0,0,0,-33,-39,-44,-14,-89,-100,-499,-525,-573,-570,-535,-539,-538,-532,-545,-540,-535,-537,-596,-581,-594,-589,-598,-489,-615,-615,-615,-595,-738,-722]} 1. e4 {[%emt 0:00:03]} c5 {[%emt 0:00:10]} 2. Nf3 {[%emt 0:00:09]} d6 {[%emt 0:00:04]} 3. Bb5+ {[%emt 0:00:06]} Bd7 {[%emt 0:00:12]} 4. Bxd7+ {[%emt 0:00:09]} Nxd7 {[%emt 0:00:05]} 5. O-O {[%emt 0:00:08]} Ngf6 {[%emt 0:00:04]} 6. Qe2 {[%emt 0:00:07]} e6 {[%emt 0:00:08]} 7. d4 {[%emt 0:00:19]} cxd4 {[%emt 0:00:07]} 8. Nxd4 {[%emt 0:00:06]} a6 {[%emt 0:05:45]} 9. c4 {[%emt 0:00:12]} Rc8 {[%emt 0:00:23]} 10. b3 {[%emt 0:00:11]} Be7 {[%emt 0:00:30] White has an edge.} 11. Bb2 {[%emt 0:00:30]} Qa5 {[%emt 0:00:51]} 12. Nc3 {[%emt 0:01:44]} g5 {[%emt 0:10:17]} 13. Nd5 {[%emt 0:34:10]} exd5 {[%emt 0:04:00]} 14. exd5 {[%emt 0:00:09] Nf5 would now be deadly.} Ne5 {[%emt 0:25:11]} 15. f4 {[%emt 0:03:24]} (15. Nf5 Nfd7 $14) 15... gxf4 {[%emt 0:00:31]} 16. Rxf4 {[%emt 0:00:10]} Kd8 {[%emt 0:16:54]} 17. Raf1 {[%emt 0:01:00] [#]} (17. Qf1 $1 $11 Nfd7 18. Rxf7) 17... Re8 $1 $17 {[%emt 0:14:05]} 18. Rxf6 $4 {[%emt 0:08:33][%mdl 8192] White does not recover from this.} (18. Nf5 $17 {is a better chance.} Bf8 19. Bxe5) 18... Bxf6 $19 {[%emt 0:00:14] Black is clearly winning.} 19. Rxf6 {[%emt 0:00:06]} Nd7 {[%emt 0:05:38][%cal Oe8e2]} (19... Qxa2 20. Rxd6+ Kc7 21. Ne6+ (21. Rf6 $2 Nf3+ 22. Qxf3 Qb1+ 23. Qf1 Re1 $19) 21... fxe6 22. Qxe5 Qb1+ 23. Kf2 Rf8+ 24. Ke3 $16) 20. Re6 {[%emt 0:16:28]} fxe6 {[%emt 0:00:07]} 21. Nxe6+ {[%emt 0:00:16] [#]} Rxe6 $1 {[%emt 0:00:07]} 22. dxe6 {[%emt 0:00:04]} Ne5 {[%emt 0:00:17]} 23. Qe4 {[%emt 0:00:46]} Kc7 {[%emt 0:00:35]} (23... Qxa2 24. Bxe5 Qxb3 (24... dxe5 25. Qd5+ Kc7 26. Qxe5+ Kb6 27. Qd4+ Rc5 28. e7 $11) 25. Qxh7 (25. Qh4+ Kc7 $11) 25... Qd1+ (25... dxe5 26. Qd7#) (25... Qe3+ 26. Kf1 $11) 26. Kf2 Qd2+ (26... dxe5 27. e7+ Kd7 28. Qf5+ Kxe7 29. Qxc8 $11) 27. Kf3 dxe5 (27... Qd1+ 28. Ke3 $11) 28. e7+ Ke8 29. Qg8+ Kxe7 30. Qxc8 $11) 24. h3 {[%emt 0:04:17]} Kb8 {[%emt 0:01:29]} ({Stronger than} 24... Qxa2 25. Bxe5 dxe5 26. Qxe5+ Kc6 27. Qd5+ Kc7 (27... Kb6 28. Qd4+ Kc7 29. Qe5+ Kc6 30. Qd5+ Kc7 31. Qe5+ $11) 28. Qe5+ Kc6 29. Qd5+ Kc7 (29... Kb6 30. Qd4+ Ka5 31. Qc3+ Kb6 32. Qe3+ Ka5 33. Qc3+ Kb6 34. Qd4+ Kc7 35. Qe5+ $11) 30. Qe5+ $11) 25. Bd4 {[%emt 0:02:40]} Nc6 {[%emt 0:06:14] Threatens to win with ...Nxd4.} 26. Bf6 {[%emt 0:02:37]} Re8 {[%emt 0:01:48]} 27. Kh2 {[%emt 0:01:42]} Qh5 {[%emt 0:00:41]} 28. e7 {[%emt 0:03:46]} Qf7 {[%emt 0:02:03][%csl LRe7,LRf6]} 29. Qf5 {[%emt 0:00:21]} Rxe7 {[%emt 0:00:17] Weighted Error Value: White=0.54/Black=0.09 (flawless) .  Loses game:     	White=1     	---        Mistake:       	White=1     	---        Inaccurate:     	White=2     	---        OK:         	White=4     	Black=9      Best:        	---       	Black=1      Strong:       	---       	Black=1      Brilliant:      	---       	Black=1} 0-1